fUSD/lending_fUSD_20260116
["ID","MTS","AMOUNT","RATE_DAILY","PERIOD"]
[402198720,1768590477963,-10000.0,0.00014645,2]
[402198721,1768590480051,-10000.0,0.00014645,2]
[402198722,1768590480346,-10000.0,0.00014645,2]
[402198723,1768590480781,-10000.0,0.00014645,2]
[402198724,1768590481147,-10000.0,0.00014645,2]
[402198725,1768590481555,-10000.0,0.00014645,2]
[402198726,1768590482016,-10000.0,0.00014645,2]
[402198727,1768590482431,-10000.0,0.00014645,2]
[402198728,1768590482992,-10000.0,0.00014645,2]
[402198729,1768590483436,-10000.0,0.00014645,2]
[402198730,1768590483945,-10000.0,0.00014645,2]
[402198731,1768590484654,-10000.0,0.00014645,2]
[402198732,1768590485967,-10000.0,0.00014645,2]
[402198733,1768590486313,-10000.0,0.00014645,2]
[402198734,1768590487477,-10000.0,0.00014645,2]
[402198735,1768590488335,-10000.0,0.00014645,2]
[402198736,1768590489232,-10000.0,0.00014645,2]
[402198737,1768590490090,-10000.0,0.00014645,2]
[402198738,1768590492312,620.81555536,0.00014545,2]
[402198739,1768590494827,1000.0,0.00014644,2]
[402198740,1768590495426,-646.0,0.00014645,2]
[402198741,1768590497519,284.0,0.00014644,2]
[402198742,1768590519523,7595.19444464,0.00014545,2]
[402198743,1768590519549,10000.01,0.00014545,2]
[402198744,1768590519574,10000.01,0.00014545,2]
[402198745,1768590519603,10000.01,0.00014545,2]
[402198746,1768590519627,10000.01,0.00014545,2]
[402198747,1768590538598,-9899.5989961,0.00014545,2]
[402198748,1768590540845,-10000.01,0.00014545,2]
[402198749,1768590540977,-10000.01,0.00014545,2]
[402198750,1768590541178,-10000.01,0.00014545,2]
[402198751,1768590541385,-300.0,0.00014544,2]
[402198752,1768590541424,-9400.01,0.00014545,2]
[402198753,1768590541649,-10000.01,0.00014545,2]
[402198754,1768590541789,-300.0,0.00014544,2]
[402198755,1768590541824,-9400.01,0.00014545,2]
[402198756,1768590541952,-150.0,0.00014544,2]
[402198757,1768590541998,-9700.01,0.00014545,2]
[402198758,1768590542050,-10000.01,0.00014545,2]
[402198759,1768590542182,-10000.01,0.00014545,2]
[402198761,1768590601465,1200.0,0.00014544,2]
[402198762,1768590606653,197.7,0.00014535,2]
[402198763,1768590606865,197.7,0.00014535,2]
[402198764,1768590608446,5079.33,0.00014535,2]
[402198765,1768590608667,3325.28,0.00014535,2]
[402198766,1768590608692,1754.05,0.00014535,2]
[402198767,1768590609225,8245.96,7.945e-05,2]
[402198768,1768590609251,6271.093698,7.945e-05,2]
[402198769,1768590612933,300.19470526,0.00014445,2]
[402198779,1768590632564,-434.1571506,0.00014545,2]
[402198784,1768590632940,-107903.75705686,0.00014545,2]
[402198785,1768590632951,-1613.92825504,0.00014545,2]
[402198786,1768590632978,-369.4599999,0.00014545,2]
[402198787,1768590632989,-305.63124321,0.00014545,2]
[402198788,1768590633000,-5139.61447808,0.00014545,2]
[402198789,1768590633022,-79898.29620624,0.00014545,2]
[402198790,1768590635618,500.0,0.00014544,2]
[402198791,1768590635945,309.72480797,0.00014544,2]
[402198792,1768590636322,378.84342221,0.00014544,2]
[402198793,1768590638341,-944.33,0.00014545,2]
[402198794,1768590638352,-999.8506,0.00014545,2]
[402198795,1768590638364,-1000.51193,0.00014545,2]
[402198796,1768590638374,-1323.45921772,0.00014545,2]
[402198797,1768590638390,-8208.13722735,0.00014545,2]
[402198798,1768590638401,-42216.74504896,0.00014545,2]
[402198799,1768590638417,-33909.29506012,0.00014545,2]
[402198800,1768590638428,-871.59133588,0.00014545,2]
[402198801,1768590638439,-36659.22978072,0.00014545,2]
[402198802,1768590638451,-431.69598331,0.00014545,2]
[402198803,1768590638463,-10580.34583948,0.00014545,2]
[402198804,1768590638474,-1157.83394336,0.00014545,2]
[402198805,1768590638493,-871.42515343,0.00014545,2]
[402198806,1768590638504,-2320.18029496,0.00014545,2]
[402198807,1768590638596,-1550.56786155,0.00014545,2]
[402198808,1768590638608,-600.0,0.00014545,2]
[402198809,1768590638621,-6056.11430853,0.00014545,2]
[402198810,1768590638633,-3002.10256196,0.00014545,2]
[402198811,1768590638660,-1583.41443103,0.00014545,2]
[402198812,1768590638672,-499.21428765,0.00014545,2]
[402198823,1768590640406,-2759.8345469,0.00014545,2]
[402198824,1768590640458,-7797.00312763,0.00014545,2]
[402198825,1768590640469,-398.33393223,0.00014545,2]
[402198826,1768590640478,-405.0,0.00014545,2]
[402198827,1768590640490,-9037.39875583,0.00014545,2]
[402198828,1768590640513,-284.14942719,0.00014545,2]
[402198829,1768590640525,-8117.35424924,0.00014545,2]
[402198830,1768590640705,-9807.25308609,0.00014545,2]
[402198831,1768590640716,-493.65095226,0.00014545,2]
[402198832,1768590640731,-464454.20922595,0.00014545,2]
[402198833,1768590640742,-489.2997,0.00014545,2]
[402198834,1768590640752,-6054.4455,0.00014545,2]
[402198835,1768590640761,-2500.0,0.00014545,2]
[402198836,1768590640770,-500.0,0.00014545,2]
[402198837,1768590640780,-195.0,0.00014545,2]
[402198838,1768590640796,-342.54561698,0.00014545,2]
[402198839,1768590640806,-250.0,0.00014545,2]
[402198840,1768590640815,-270.0,0.00014545,2]
[402198841,1768590640824,-500.0,0.00014644,2]
[402198842,1768590640834,-458.62181078,0.00014644,2]
[402198843,1768590640843,-500.0,0.00014644,2]
[402198844,1768590640853,-500.0,0.00014644,2]
[402198845,1768590640862,-500.0,0.00014644,2]
[402198846,1768590640872,-1000.0,0.00014645,2]
[402198847,1768590641190,-285.70443904,0.00014645,2]
[402198848,1768590641202,-7925.18889769,0.00014645,2]
[402198849,1768590641213,-1248.69114802,0.00014645,2]
[402198850,1768590641224,-2337.76615348,0.00014645,2]
[402198851,1768590641238,-200.0,0.00014645,2]
[402198852,1768590641249,-500.0,0.00014744,2]
[402198853,1768590641263,-500.0,0.00014744,2]
[402198854,1768590641272,-500.0,0.00014744,2]
[402198855,1768590641283,-501.14381708,0.00014744,2]
[402198856,1768590641293,-500.0,0.00014744,2]
[402198857,1768590641304,-580.7623026,0.00014744,2]
[402198858,1768590641314,-200.0,0.0001479,2]
[402198859,1768590641324,-200.0,0.0001479,2]
[402198860,1768590641333,-200.0,0.00014791,2]
[402198861,1768590641342,-158.27,0.00014894,2]
[402198862,1768590641351,-7211.12892165,0.00014918,2]
[402198863,1768590641360,-10865.32405642,0.00014918,2]
[402198864,1768590641369,-200.0,0.00014938,2]
[402198865,1768590641378,-200.0,0.00014938,2]
[402198866,1768590641387,-200.0,0.00014939,2]
[402198867,1768590641397,-3777.71,0.00014942,2]
[402198868,1768590641406,-200.0,0.00014958,2]
[402198869,1768590641415,-620.81555533,0.00015024,2]
[402198870,1768590641429,-3240.0,0.0001505,2]
[402198871,1768590641439,-200.0,0.00015088,2]
[402198872,1768590641449,-200.0,0.00015088,2]
[402198873,1768590641459,-200.0,0.00015089,2]
[402198874,1768590641468,-206.31,0.00015105,2]
[402198875,1768590641479,-11314.93,0.00015113,2]
[402198876,1768590641488,-24086.54,0.00015152,2]
[402198877,1768590641498,-500.0,0.00015184,2]
[402198878,1768590641507,-200.0,0.00015239,2]
[402198879,1768590641516,-7211.12892165,0.00015291,2]
[402198880,1768590641525,-10865.32405642,0.00015291,2]
[402198881,1768590641535,-500.0,0.00015309,2]
[402198882,1768590641544,-516.26,0.00015309,2]
[402198883,1768590641554,-500.0,0.00015309,2]
[402198884,1768590641563,-500.0,0.00015309,2]
[402198885,1768590641573,-500.0,0.00015309,2]
[402198886,1768590641582,-258.67,0.0001531,2]
[402198887,1768590641593,-150.99,0.0001531,2]
[402198888,1768590641602,-9999.99,0.0001531,2]
[402198889,1768590641612,-500.0,0.00015324,2]
[402198890,1768590641621,-500.0,0.0001544,2]
[402198891,1768590641632,-620.81555533,0.00015504,2]
[402198892,1768590641643,-500.0,0.00015628,2]
[402198893,1768590641652,-7211.12892165,0.00015663,2]
[402198894,1768590641662,-10865.32405642,0.00015663,2]
[402198895,1768590641672,-255.0,0.00015664,2]
[402198896,1768590641682,-500.0,0.00015732,2]
[402198897,1768590641692,-150.0,0.00015773,2]
[402198898,1768590641702,-500.0,0.00015773,2]
[402198899,1768590641711,-490.42703734,0.00015773,2]
[402198900,1768590641721,-46637.94,0.00015778,2]
[402198901,1768590641730,-1200.0,0.000159,5]
[402198902,1768590641739,-500.0,0.00015902,2]
[402198903,1768590641749,-620.81555533,0.00015983,2]
[402198904,1768590641758,-1680.0,0.00015998,2]
[402198905,1768590641768,-250.0,0.00015999,2]
[402198906,1768590641777,-195.0,0.00015999,2]
[402198907,1768590641786,-300.0,0.00015999,2]
[402198908,1768590641795,-7211.12892165,0.00016036,2]
[402198909,1768590641805,-10865.32405642,0.00016036,2]
[402198910,1768590641816,-351.28,0.00016047,2]
[402198911,1768590641827,-300.19470525,0.00016088,2]
[402198912,1768590641838,-195.0,0.00016109,2]
[402198913,1768590641847,-195.0,0.00016109,2]
[402198914,1768590641856,-195.0,0.00016109,2]
[402198915,1768590641866,-193.55917639,0.00016109,2]
[402198916,1768590641875,-165.2692627,0.00016109,2]
[402198917,1768590641884,-418.59807532,0.00016109,2]
[402198918,1768590641894,-250.0,0.00016109,2]
[402198919,1768590641904,-500.0,0.00016115,2]
[402198920,1768590641916,-150.0,0.00016167,2]
[402198921,1768590641925,-500.0,0.00016176,2]
[402198922,1768590641934,-1000.0,0.00016321,2]
[402198923,1768590641944,-923.71300875,0.00016321,2]
[402198924,1768590641953,-158.27,0.00016383,2]
[402198925,1768590641962,-7211.12892165,0.00016409,2]
[402198926,1768590641971,-10865.32405642,0.00016409,2]
[402198927,1768590641981,-500.0,0.00016438,2]
[402198928,1768590641990,-248.74688754,0.00016438,2]
[402198929,1768590642000,-500.0,0.00016438,2]
[402198930,1768590642018,-500.0,0.00016438,2]
[402198931,1768590642029,-500.0,0.00016438,2]
[402198932,1768590642040,-500.0,0.00016438,2]
[402198933,1768590642051,-500.0,0.00016438,2]
[402198934,1768590642061,-500.0,0.00016452,2]
[402198935,1768590642071,-322.6107,0.00016453,2]
[402198936,1768590642081,-250.0,0.00016453,2]
[402198937,1768590642091,-250.0,0.00016453,2]
[402198938,1768590642100,-250.0,0.00016453,2]
[402198939,1768590642110,-250.0,0.00016453,2]
[402198940,1768590642120,-250.0,0.00016453,2]
[402198941,1768590642130,-250.0,0.00016453,2]
[402198942,1768590642140,-250.0,0.00016453,2]
[402198943,1768590642150,-250.0,0.00016453,2]
[402198944,1768590642160,-250.0,0.00016453,2]
[402198945,1768590642169,-240.60543737,0.00016453,2]
[402198946,1768590642179,-649.00308054,0.00016453,2]
[402198947,1768590642190,-574.12855637,0.00016453,2]
[402198948,1768590642201,-1239.0,0.00016453,2]
[402198949,1768590642211,-620.81555533,0.00016462,2]
[402198950,1768590642221,-153.41,0.0001652,2]
[402198951,1768590642231,-7864.97,0.00016638,2]
[402198952,1768590642241,-1852.42,0.00016752,2]
[402198953,1768590642251,-8233.0,0.00016782,2]
[402198954,1768590642267,-7211.12892165,0.00016782,2]
[402198955,1768590642277,-10865.32405642,0.00016782,2]
[402198956,1768590642287,-433.17,0.000168,2]
[402198957,1768590642298,-2935.45,0.00016815,2]
[402198958,1768590642308,-448.57757008,0.00016835,2]
[402198959,1768590642317,-1500.0,0.00016868,2]
[402198960,1768590642328,-433.0,0.00016871,2]
[402198961,1768590642339,-1149.03103041,0.00016923,2]
[402198962,1768590642349,-620.81555533,0.00016941,2]
[402198963,1768590642359,-595.37131296,0.00017001,2]
[402198964,1768590642369,-7211.12892165,0.00017154,2]
[402198965,1768590642378,-10865.32405642,0.00017154,2]
[402198966,1768590642388,-959.0,0.00017209,2]
[402198967,1768590642398,-2400.0,0.000173,6]
[402198968,1768590642412,-150.0,0.00017375,3]
[402198969,1768590642422,-850.21314504,0.0001739,2]
[402198970,1768590642432,-33212.9972,0.000174,2]
[402198971,1768590642442,-3600.0,0.000174,6]
[402198972,1768590642452,-2000.0,0.00017416,2]
[402198973,1768590642462,-620.81555533,0.00017421,2]
[402198974,1768590642473,-959.0,0.00017423,2]
[402198975,1768590642483,-150.0,0.00017458,2]
[402198976,1768590642493,-161.805,0.0001747,2]
[402198977,1768590642503,-3471.0,0.0001747,2]
[402198978,1768590642513,-1331.0,0.0001747,2]
[402198979,1768590642523,-614.0,0.0001747,2]
[402198980,1768590642532,-1406.0,0.0001747,2]
[402198981,1768590642542,-1268.0,0.0001747,2]
[402198982,1768590642553,-412.0,0.0001747,2]
[402198983,1768590642563,-1202.0,0.0001747,2]
[402198984,1768590642573,-915.0,0.0001747,2]
[402198985,1768590642583,-566.0,0.00017471,2]
[402198986,1768590642593,-2439.0,0.00017471,2]
[402198987,1768590642603,-4824.0,0.00017471,2]
[402198988,1768590642612,-2000.0,0.000175,2]
[402198989,1768590642622,-1000.0,0.000175,2]
[402198990,1768590642632,-4800.0,0.000175,6]
[402198991,1768590642642,-7211.12892165,0.00017527,2]
[402198992,1768590642652,-10865.32405642,0.00017527,2]
[402198993,1768590642662,-617.40005154,0.00017549,2]
[402198994,1768590642672,-959.0,0.00017573,2]
[402198995,1768590642682,-959.0,0.00017582,2]
[402198996,1768590642692,-500.0,0.00017589,2]
[402198997,1768590642702,-150.0,0.00017589,2]
[402198998,1768590642712,-500.0,0.00017589,2]
[402198999,1768590642722,-477.0,0.00017589,2]
[402199000,1768590642731,-500.0,0.00017589,2]
[402199001,1768590642741,-500.0,0.00017589,2]
[402199002,1768590642751,-500.0,0.00017589,2]
[402199003,1768590642761,-150.0,0.00017589,2]
[402199004,1768590642771,-150.0,0.00017589,2]
[402199005,1768590642781,-500.0,0.00017589,2]
[402199006,1768590642791,-150.0,0.00017589,2]
[402199007,1768590642801,-2351.0,0.00017598,2]
[402199008,1768590642811,-6000.0,0.000176,6]
[402199009,1768590642822,-165.51315466,0.0001764,2]
[402199010,1768590642831,-500.0,0.00017644,2]
[402199011,1768590642842,-150.0,0.00017644,2]
[402199012,1768590642852,-500.0,0.00017644,2]
[402199013,1768590642861,-477.0,0.00017644,2]
[402199014,1768590642871,-500.0,0.00017644,2]
[402199015,1768590642881,-500.0,0.00017644,2]
[402199016,1768590642891,-500.0,0.00017644,2]
[402199017,1768590642901,-500.0,0.00017644,2]
[402199018,1768590642911,-182.12762624,0.00017644,2]
[402199019,1768590642921,-959.0,0.00017652,2]
[402199020,1768590642931,-155.28470781,0.0001766,2]
[402199021,1768590642940,-500.0,0.00017699,2]
[402199022,1768590642950,-279.63385986,0.00017699,2]
[402199023,1768590642960,-500.0,0.00017699,2]
[402199024,1768590642970,-477.0,0.00017699,2]
[402199025,1768590642980,-500.0,0.00017699,2]
[402199026,1768590642991,-500.0,0.00017699,2]
[402199027,1768590643002,-500.0,0.00017699,2]
[402199028,1768590643012,-500.0,0.00017699,2]
[402199029,1768590643022,-1200.0,0.000177,6]
[402199030,1768590643032,-1000.0,0.000177,2]
[402199031,1768590643043,-781.0,0.00017705,2]
[402199032,1768590643054,-781.0,0.00017709,2]
[402199033,1768590643064,-1000.0,0.0001773,2]
[402199034,1768590643074,-300.19470525,0.0001773,2]
[402199035,1768590643084,-150.0,0.0001773,2]
[402199036,1768590643095,-1000.0,0.00017736,2]
[402199038,1768590643105,-1000.0,0.0001774,2]
[402199039,1768590643115,-1000.0,0.00017746,2]
[402199040,1768590643124,-959.0,0.00017747,2]
[402199041,1768590643133,-151.0,0.00017748,2]
[402199042,1768590643143,-1000.0,0.00017751,2]
[402199043,1768590643152,-500.0,0.00017753,2]
[402199044,1768590643163,-500.0,0.00017753,2]
[402199045,1768590643174,-477.0,0.00017753,2]
[402199047,1768590643184,-500.0,0.00017753,2]
[402199049,1768590643194,-500.0,0.00017753,2]
[402199050,1768590643203,-500.0,0.00017753,2]
[402199051,1768590643213,-500.0,0.00017753,2]
[402199052,1768590643223,-902.85996009,0.00017783,7]
[402199053,1768590643233,-2382.66171931,0.00017783,7]
[402199054,1768590643245,-4203.29769878,0.00017783,7]
[402199055,1768590643257,-6287.88197466,0.00017783,7]
[402199056,1768590643272,-8507.7234,0.00017783,7]
[402199057,1768590643282,-1000.0,0.00017798,2]
[402199058,1768590643291,-1000.0,0.000178,2]
[402199059,1768590643302,-1200.0,0.000178,6]
[402199060,1768590643311,-1000.0,0.00017804,2]
[402199062,1768590643321,-150.0,0.00017806,2]
[402199064,1768590643331,-200.0,0.00017806,2]
[402199065,1768590643343,-150.0,0.00017806,2]
[402199066,1768590643353,-150.0,0.00017806,2]
[402199067,1768590643363,-150.0,0.00017806,2]
[402199068,1768590643372,-150.0,0.00017806,2]
[402199070,1768590643382,-150.0,0.00017806,2]
[402199071,1768590643391,-150.0,0.00017806,2]
[402199072,1768590643401,-150.0,0.00017806,2]
[402199073,1768590643410,-150.0,0.00017806,2]
[402199074,1768590643420,-781.0,0.00017806,2]
[402199075,1768590643430,-150.0,0.00017808,2]
[402199076,1768590643441,-150.0,0.00017808,2]
[402199077,1768590643452,-500.0,0.00017808,2]
[402199078,1768590643463,-500.0,0.00017808,2]
[402199079,1768590643473,-477.0,0.00017808,2]
[402199080,1768590643482,-500.0,0.00017808,2]
[402199081,1768590643491,-500.0,0.00017808,2]
[402199082,1768590643500,-500.0,0.00017808,2]
[402199083,1768590643508,-1929.79131,0.0001782,2]
[402199084,1768590643518,-1929.79131,0.0001782,2]
[402199085,1768590643527,-334.5472959,0.00017822,2]
[402199086,1768590643537,-1239.0,0.00017822,2]
[402199087,1768590643546,-1000.0,0.00017826,2]
[402199088,1768590643555,-1000.0,0.00017828,2]
[402199089,1768590643565,-516.71651158,0.00017829,2]
[402199090,1768590643574,-500.0,0.00017829,2]
[402199091,1768590643581,-500.0,0.00017829,2]
[402199092,1768590643589,-107837.66791739,0.0001783,2]
[402199093,1768590643598,-1000.0,0.0001783,2]
[402199094,1768590643606,-1000.0,0.00017844,2]
[402199095,1768590643615,-1000.0,0.00017852,2]
[402199096,1768590643625,-150.0,0.00017854,2]
[402199097,1768590643634,-351.28,0.00017855,2]
[402199098,1768590643644,-200.0,0.00017856,2]
[402199099,1768590643654,-1000.0,0.0001786,2]
[402199100,1768590643664,-150.98037439,0.00017863,2]
[402199101,1768590643673,-150.0,0.00017863,2]
[402199102,1768590643683,-500.0,0.00017863,2]
[402199103,1768590643694,-500.0,0.00017863,2]
[402199104,1768590643703,-477.0,0.00017863,2]
[402199105,1768590643713,-500.0,0.00017863,2]
[402199106,1768590643724,-500.0,0.00017863,2]
[402199107,1768590643733,-500.0,0.00017863,2]
[402199108,1768590643743,-1000.0,0.00017868,2]
[402199109,1768590643752,-158.27,0.00017873,2]
[402199110,1768590643762,-1000.0,0.00017874,2]
[402199111,1768590643772,-1000.0,0.00017884,2]
[402199112,1768590643781,-685.7,0.00017891,2]
[402199113,1768590643791,-150.0,0.00017895,2]
[402199114,1768590643801,-1000.0,0.00017898,2]
[402199115,1768590643811,-1274.03648154,0.000179,2]
[402199116,1768590643820,-10000.0,0.000179,2]
[402199117,1768590643830,-14308.24200541,0.000179,3]
[402199118,1768590643840,-7211.12892165,0.000179,2]
[402199119,1768590643851,-1200.0,0.000179,6]
[402199120,1768590643860,-10865.32405642,0.000179,2]
[402199121,1768590643870,-620.81555533,0.000179,2]
[402199122,1768590643880,-1000.0,0.000179,2]
[402199123,1768590643890,-1627.31938536,0.000179,2]
[402199124,1768590643901,-184.87505214,0.000179,3]
[402199125,1768590643911,-4026.35610915,0.000179,2]
[402199126,1768590643921,-18855.84472734,0.000179,2]
[402199127,1768590643932,-368.00002973,0.000179,2]
[402199128,1768590643942,-500.0,0.000179,2]
[402199129,1768590643952,-500.0,0.000179,2]
[402199130,1768590643963,-500.0,0.000179,2]
[402199131,1768590643972,-500.0,0.000179,2]
[402199132,1768590643983,-500.0,0.000179,2]
[402199133,1768590643994,-500.0,0.000179,2]
[402199134,1768590644004,-500.0,0.000179,2]
[402199135,1768590644013,-500.0,0.000179,2]
[402199136,1768590644023,-500.0,0.000179,2]
[402199137,1768590644033,-500.0,0.000179,2]
[402199138,1768590644044,-500.0,0.000179,2]
[402199139,1768590644054,-500.0,0.000179,2]
[402199140,1768590644064,-500.0,0.000179,2]
[402199141,1768590644074,-500.0,0.000179,2]
[402199142,1768590644084,-500.0,0.000179,2]
[402199143,1768590644094,-500.0,0.000179,2]
[402199144,1768590644103,-500.0,0.000179,2]
[402199145,1768590644112,-500.0,0.000179,2]
[402199146,1768590644122,-500.0,0.000179,2]
[402199147,1768590644132,-500.0,0.000179,2]
[402199148,1768590644142,-500.0,0.000179,2]
[402199149,1768590644151,-500.0,0.000179,2]
[402199150,1768590644161,-500.0,0.000179,2]
[402199151,1768590644171,-500.0,0.000179,2]
[402199152,1768590644180,-500.0,0.000179,2]
[402199153,1768590644189,-500.0,0.000179,2]
[402199154,1768590644199,-500.0,0.000179,2]
[402199155,1768590644208,-500.0,0.000179,2]
[402199156,1768590644218,-500.0,0.000179,2]
[402199157,1768590644228,-500.0,0.000179,2]
[402199158,1768590644237,-500.0,0.000179,2]
[402199159,1768590644247,-500.0,0.000179,2]
[402199160,1768590644261,-500.0,0.000179,2]
[402199161,1768590644272,-500.0,0.000179,2]
[402199162,1768590644282,-500.0,0.000179,2]
[402199163,1768590644291,-500.0,0.000179,2]
[402199164,1768590644303,-500.0,0.000179,2]
[402199165,1768590644313,-500.0,0.000179,2]
[402199166,1768590644323,-500.0,0.000179,2]
[402199167,1768590644334,-500.0,0.000179,2]
[402199168,1768590644344,-432.15823719,0.000179,2]
[402199169,1768590644354,-1000.0,0.00017906,2]
[402199170,1768590644363,-1000.0,0.00017914,2]
[402199171,1768590644372,-1000.0,0.00017916,2]
[402199172,1768590644382,-150.0,0.00017918,2]
[402199173,1768590644392,-333.53568828,0.00017918,2]
[402199174,1768590644402,-500.0,0.00017918,2]
[402199175,1768590644411,-477.0,0.00017918,2]
[402199176,1768590644421,-500.0,0.00017918,2]
[402199177,1768590644431,-500.0,0.00017918,2]
[402199178,1768590644440,-482.2469951,0.00017918,2]
[402199179,1768590644451,-1000.0,0.00017921,2]
[402199180,1768590644461,-589.5,0.00017923,2]
[402199181,1768590644470,-1000.0,0.00017924,2]
[402199182,1768590644479,-150.0,0.00017929,2]
[402199183,1768590644489,-1000.0,0.00017932,2]
[402199184,1768590644499,-1000.0,0.00017937,2]
[402199185,1768590644508,-150.0,0.00017943,2]
[402199186,1768590644518,-150.0,0.00017943,2]
[402199187,1768590644527,-1000.0,0.00017943,2]
[402199188,1768590644536,-168.0,0.00017944,2]
[402199189,1768590644546,-151.22,0.00017948,2]
[402199190,1768590644555,-557.06,0.00017948,2]
[402199191,1768590644564,-1257.99,0.00017948,2]
[402199192,1768590644574,-330.28,0.00017948,2]
[402199193,1768590644584,-151.16,0.00017948,2]
[402199194,1768590644594,-346.54,0.00017948,2]
[402199195,1768590644604,-556.93,0.00017948,2]
[402199196,1768590644614,-300.0,0.00017948,2]
[402199197,1768590644624,-171.62,0.00017948,2]
[402199198,1768590644634,-856.42,0.00017948,2]
[402199199,1768590644643,-1000.0,0.00017953,2]
[402199200,1768590644653,-556.81,0.00017956,2]
[402199201,1768590644663,-184.35,0.00017956,2]
[402199202,1768590644674,-300.0,0.00017956,2]
[402199203,1768590644684,-179.47,0.00017956,2]
[402199204,1768590644694,-557.06,0.00017956,2]
[402199205,1768590644703,-150.0,0.00017956,2]
[402199206,1768590644713,-171.73,0.00017956,2]
[402199207,1768590644723,-557.39,0.00017956,2]
[402199208,1768590644732,-171.73,0.00017956,2]
[402199209,1768590644741,-179.47,0.00017956,2]
[402199210,1768590644751,-150.0,0.00017956,2]
[402199211,1768590644760,-171.73,0.00017956,2]
[402199212,1768590644770,-178.82,0.00017956,2]
[402199213,1768590644780,-557.39,0.00017956,2]
[402199214,1768590644790,-150.0,0.00017956,2]
[402199215,1768590644800,-152.56,0.00017956,2]
[402199216,1768590644810,-557.39,0.00017956,2]
[402199217,1768590644820,-557.39,0.00017956,2]
[402199218,1768590644830,-557.39,0.00017956,2]
[402199219,1768590644839,-557.39,0.00017956,2]
[402199220,1768590644849,-1000.0,0.00017959,2]
[402199221,1768590644859,-1267.79728294,0.00017964,2]
[402199222,1768590644869,-500.0,0.0001797,2]
[402199223,1768590644878,-1100.0,0.0001797,2]
[402199224,1768590644887,-700.0,0.0001797,2]
[402199225,1768590644897,-1000.0,0.00017972,2]
[402199226,1768590644906,-500.0,0.00017972,2]
[402199227,1768590644915,-500.0,0.00017972,2]
[402199228,1768590644925,-150.0,0.00017972,2]
[402199229,1768590644935,-500.0,0.00017973,2]
[402199230,1768590644945,-477.0,0.00017973,2]
[402199231,1768590644955,-500.0,0.00017973,2]
[402199232,1768590644964,-500.0,0.00017973,2]
[402199233,1768590644974,-14603.0,0.00017973,2]
[402199234,1768590644984,-30478.0,0.00017973,2]
[402199235,1768590644993,-500.0,0.00017973,2]
[402199236,1768590645003,-150.0,0.00017973,2]
[402199237,1768590645013,-1000.0,0.00017978,2]
[402199238,1768590645023,-1000.0,0.00017982,2]
[402199239,1768590645032,-150.0,0.00017982,3]
[402199240,1768590645042,-1000.0,0.00017984,2]
[402199241,1768590645053,-1000.0,0.0001799,2]
[402199242,1768590645062,-1000.0,0.0001799,2]
[402199243,1768590645071,-850.21314504,0.0001799,2]
[402199244,1768590645082,-850.21314504,0.0001799,2]
[402199245,1768590645093,-151.0,0.00017997,2]
[402199246,1768590645104,-274.0,0.00017998,2]
[402199247,1768590645113,-150.0,0.00017999,2]
[402199248,1768590645123,-176.82451653,0.00017999,2]
[402199249,1768590645134,-300.0,0.00017999,2]